Cogmind - Beta 16 @@@ ROGUE MODE // 2026.01.06 @ 22:19:47 Player: Legato Result: Destroyed by G-34 Mercenary with Small Laser Performance ------------- Evolutions (0) 0 Regions Visited (1) 200 Robots Destroyed (39) 195 Value Destroyed (523) 523 Prototype IDs (2) 40 Alien Tech Used (0) 0 Bonus (0) 0 TOTAL SCORE: 958 Bonus ------- None Cogmind --------- Core Integrity 0/250 Matter 244/300 Energy 250/250 System Corruption 15% Temperature Warning (315) Movement Core (200) Ox3 Location -10/Materials Parts ------- > --- POWER (1) -------- Ion Engine > --- PROPULSION (2) --- (None) > --- UTILITY (2) ------ Sensor Array > --- WEAPON (2) ------- Beam Cannon Light Assault Rifle > --- INVENTORY (5) ---- Wheel Signal Interpreter Terrain Scanner Propulsion Shielding Hammer Peak State ------------ > --- POWER ------------ Ion Engine > --- PROPULSION ------- Aluminum Leg Aluminum Leg > --- UTILITY ---------- Small Storage Unit Light Armor Plating > --- WEAPON ----------- Medium Laser Particle Gun > --- INVENTORY -------- Aluminum Leg Aluminum Leg Wheel Signal Interpreter Signal Interpreter Terrain Scanner [Rating: 8] Favorites ----------- Power Ion Engine Engine Ion Engine Propulsion Light Treads Treads Light Treads Leg Aluminum Leg Utility Small Storage Unit Device Seismic Detector Storage Small Storage Unit Protection Propulsion Shielding Weapon Light Assault Rifle Energy Gun Medium Laser Energy Cannon Beam Cannon Ballistic Gun Light Assault Rifle Impact Weapon Hammer Build | -11 -10 ------- Run | Yrd Mat Slots Evolved . | . . Power . | . . Propulsion . | . . Utility . | . . Weapon . | . . Parts Attached 26 | 7 19 Power 5 | 1 4 Engine 5 | 1 4 Core . | . . Reactor . | . . Propulsion 6 | 2 4 Treads 2 | . 2 Leg 4 | 2 2 Wheel . | . . Hover . | . . Flight . | . . Utility 7 | 2 5 Device 4 | 1 3 Storage 1 | 1 . Processor . | . . Hackware . | . . Protection 2 | . 2 Artifact . | . . Weapon 8 | 2 6 Energy Gun 2 | . 2 Energy Cannon 1 | . 1 Ballistic Gun 4 | 2 2 Ballistic Cannon . | . . Launcher . | . . Special Weapon . | . . Impact Weapon 1 | . 1 Slashing Weapon . | . . Piercing Weapon . | . . Special Melee Weapon . | . . Unidentified Prototypes . | . . Parts Lost 9 | . 9 Power 2 | . 2 Propulsion 2 | . 2 Utility 2 | . 2 Weapon 3 | . 3 Highest Loss Streak 4 | . 4 To Critical Strikes . | . . Average Backups 7 | 3 7 Power . | . . Propulsion 2 | 2 2 Utility 3 | . 3 Weapon . | . . Tool/Special . | . . Unused Backups 10 | . 10 Power . | . . Propulsion 5 | . 5 Utility 5 | . 5 Weapon . | . . Tool/Special . | . . Average Slot Usage (%) 98 | . 98 Engine 13 | . 13 Treads 17 | . 17 Leg 10 | . 10 Device 8 | . 8 Storage 13 | . 13 Protection 5 | . 5 Energy Gun 3 | . 3 Energy Cannon 5 | . 5 Ballistic Gun 16 | . 16 Impact Weapon 1 | . 1 Peak Build Rating 8 | 7 8 Average Rating 6 | 5 7 On Entrance 3 | . 7 Avg Prop Armor Cover (%) . | . . Naked Turns . | . . Heaviest Build 18 | 14 18 Greatest Support 40 | 20 40 Greatest Overweight (x) 2 | 2 . Average Overweight (x) . | . . Largest Inventory Capacity 8 | 8 8 Average Capacity 7 | 7 7 Most Carried 8 | 5 8 Average Carried 7 | 3 7 Final Capacity 8 | 8 5 Final Carried 5 | 5 5 Class Distribution -------------------- 90% | Mutant 9% | Scavenger-Mutant Dominant Class ---------------- Mutant | -10/Materials Resources | -11 -10 ----------- Run | Yrd Mat Matter Collected 825 | 320 505 Remotely . | . . Salvage Created 1086 | 73 1013 Parts 95 | 8 87 Haulers Intercepted 1 | . 1 Recyclers Shooed 2 | 1 1 Parts Field Recycled . | . . Retrieved Matter . | . . Parts Self-Destructed . | . . Prevented . | . . Parts Restored . | . . Kills | -11 -10 ------- Run | Yrd Mat Combat Hostiles Destroyed 15 | . 15 Guns 15 | . 15 Classes Destroyed 9 | 1 8 Worker 9 | . 9 Builder 3 | . 3 Tunneler 5 | 3 2 Hauler 1 | . 1 Recycler 2 | . 2 Mechanic 1 | . 1 Watcher 3 | . 3 Swarmer 6 | . 6 Grunt 9 | . 9 Best Kill Streak 6 | 3 6 Combat Bots Only 6 | . 6 Max Kills in Single Turn 2 | 1 2 Gunslinging 1 | . 1 Exploded . | . . Melee . | . . Uniques/NPCs Destroyed . | . . Combat | -11 -10 -------- Run | Yrd Mat Hostile Shots Fired 140 | . 140 Missed 26 | . 26 Hits 114 | . 114 Projectile 114 | . 114 Critical Strikes 1 | . 1 Damage Taken 1557 | . 1557 Core 258 | . 258 Absorbed by Shields . | . . Core Remaining (%) 100 | 100 . Volleys Fired 139 | 13 126 Largest 2 | 2 2 Hottest 115 | 40 115 Shots Fired 247 | 26 221 Gun 223 | 26 197 Cannon 24 | . 24 Launcher . | . . Special . | . . Kinetic 173 | 26 147 Thermal 74 | . 74 Explosive . | . . Electromagnetic . | . . Robot Hit Streak 11 | 5 11 Robot Miss Streak 12 | 3 12 Penetration Max . | . . Secondary Targets 4 | . 4 Max Gunslinging Chain 1 | . 1 Shots Hit Robots 144 | 17 127 Core Hits 64 | 4 60 Critical Kills . | . . Critical Parts Destroyed . | . . Critical Strikes . | . . Melee Attacks 3 | . 3 Impact 3 | . 3 Slashing . | . . Piercing . | . . Sneak Attacks 1 | . 1 Combat Hostiles . | . . Follow-up Attacks . | . . Damage Inflicted 1682 | 186 1496 Guns 1362 | 186 1176 Cannons 277 | . 277 Explosions . | . . Melee 36 | . 36 Ramming 7 | . 7 Kinetic 1058 | 186 872 Thermal 581 | . 581 Explosive . | . . Electromagnetic . | . . Impact 36 | . 36 Slashing . | . . Piercing . | . . Highest Corruption 15 | . 15 Average Corruption 13 | . 13 Corruption Purged . | . . Corruption Blocked . | . . Effects 47 | . 47 Message Errors 16 | . 16 Matter Fused 9 | . 9 Heat Flow Errors 5 | . 5 Energy Discharges 8 | . 8 Data Loss (minor) 5 | . 5 Data Loss (major) 2 | . 2 Alerts 1 | . 1 Weapon Failures 1 | . 1 Overload Shots . | . . Overflow Damage . | . . Projectiles . | . . Explosions . | . . Melee . | . . Knockbacks . | . . Impact . | . . Kinetic . | . . Secondary . | . . Self-Inflicted Damage 7 | . 7 Shots . | . . Rammed . | . . Targets Rammed . | . . Kicked . | . . Crushed . | . . Highest Temperature 602 | . 602 Average Temperature 159 | . 159 Received Heat Transfer 426 | . 426 Effects 18 | . 18 Shutdowns 3 | . 3 Energy Bleed 2 | . 2 Interference 3 | . 3 Short Circuit 1 | . 1 Damage (minor) 3 | . 3 Damage (major) 6 | . 6 Siege Activations . | . . Martial Activations . | . . Shielding Activations . | . . Robots Disrupted . | . . Combat Hostiles . | . . Robots Corrupted . | . . Combat Hostiles . | . . Parts Fried . | . . Impact Corruptions . | . . Robots Melted . | . . Combat Hostiles . | . . Parts Melted 2 | . 2 Heat Transferred 1406 | . 1406 Parts Sabotaged . | . . Parts Stolen . | . . Parts Stripped . | . . Power Chain Reactions . | . . Alert | -11 -10 ------- Run | Yrd Mat Maximum Alert Level . | . . Low Security (%) 100 | 100 100 Level 1 . | . . Level 2 . | . . Level 3 . | . . Level 4 . | . . Level 5 . | . . High Security . | . . Max Security . | . . Peak Influence 128 | 10 128 Initial . | . . Average 41 | . 44 Influence Increases 530 | 15 515 Destroy 0b10 Robot/C 300 | . 300 Destroy 0b10 Robot/NC 120 | 15 105 Destroy Leader 68 | . 68 Successful Hack 8 | . 8 Disable Machine 15 | . 15 Destroy Structure 4 | . 4 Partial Spotted 15 | . 15 Influence Decreases 530 | 15 515 Time Decay 470 | 15 455 Lost Part 60 | . 60 Squads Dispatched 3 | . 3 Investigation 2 | . 2 Extermination . | . . Reinforcement 1 | . 1 Assault . | . . Garrison . | . . Intercept . | . . Searches Triggered . | . . Construction Impeded . | . . Haulers Reinforced . | . . Active Scanning Responses . | . . Cargo Convoy Interrupts . | . . Stealth | -11 -10 --------- Run | Yrd Mat Distress Signals 1 | . 1 Communications Jammed . | . . Distress Signals . | . . Times Spotted 22 | . 22 Peak Tracking Total 6 | . 6 Tactical Retreats . | . . Traps | -11 -10 ------- Run | Yrd Mat Traps Triggered 1 | . 1 Indirectly . | . . Trap Hack Attempts . | . . Triggered . | . . Disarmed . | . . Reprogrammed . | . . Reused . | . . Traps Extracted . | . . Installed . | . . Triggered . | . . Machines | -11 -10 ---------- Run | Yrd Mat Machines Disabled 1 | . 1 Max in Single Turn 1 | . 1 Machines Repaired . | . . Machines Dismantled . | . . Machines Sabotaged . | . . Overloaded Fab Kills . | . . Hacking | -11 -10 --------- Run | Yrd Mat Machines Accessed 5 | . 5 Terminals 5 | . 5 Fabricators . | . . Repair Stations . | . . Recycling Units . | . . Scanalyzers . | . . Garrison Access . | . . Total Hacks 14 | . 14 Successful 6 | . 6 Failed 8 | . 8 Catastrophic 2 | . 2 Database Lockouts . | . . Manual 10 | . 10 Terminals 14 | . 14 Fabricators . | . . Repair Stations . | . . Recycling Units . | . . Scanalyzers . | . . Garrison Access . | . . Terminal Hacks 4 | . 4 Robot Analysis 1 | . 1 Prototype ID Bank 1 | . 1 Locate Traps 1 | . 1 Zone Layout 1 | . 1 Fabricator Hacks . | . . Repair Station Hacks . | . . Recycling Unit Hacks . | . . Scanalyzer . | . . Garrison Access Hacks . | . . Unauthorized Hacks 2 | . 2 Terminals 2 | . 2 Botnet 2 | . 2 Fabricators . | . . Repair Stations . | . . Recycling Units . | . . Scanalyzers . | . . Garrison Access . | . . Data Cores Recovered . | . . Used . | . . Hacking Detections 5 | . 5 Full Trace Events 2 | . 2 Feedback Events . | . . Feedback Blocked . | . . Robot Schematics Acquired . | . . Robots Built . | . . Authchips . | . . Time . | . . Total Robot Build Rating . | . . Part Schematics Acquired . | . . Parts Built . | . . Authchips . | . . Time . | . . Total Part Build Rating . | . . Part Studies Acquired . | . . Parts Repaired . | . . Time . | . . Parts Recycled . | . . Recycled Matter . | . . Retrieved Matter . | . . Retrieved Components . | . . Parts Scanalyzed . | . . Part Schematics Acquired . | . . Parts Damaged . | . . Bothacking | -11 -10 ------------ Run | Yrd Mat Used RIF Installer . | . . Robots Hacked . | . . Non-combat . | . . Combat . | . . Robot Hacks Applied . | . . Relay Couplers Released . | . . Fabnet Peak Effective % . | . . Robots Rewired . | . . Allies Hacked . | . . Hacks Repelled . | . . Allies | -11 -10 -------- Run | Yrd Mat Total Allies . | . . Largest Group . | . . Highest-Rated Group . | . . Highest-Rated Ally . | . . Total Orders . | . . Ally Attacks . | . . Total Damage . | . . Kills . | . . Allies Corrupted . | . . Allies Melted . | . . Intel | -11 -10 ------- Run | Yrd Mat Active Infowar (turns) 979 | 26 953 Sensors 158 | . 158 Terrain 1 | . 1 Structural 280 | . 280 Seismic 540 | 26 514 Robot Analysis Total 1 | . 1 Derelict Logs Recovered . | . . Drone Launches . | . . Drone Recoveries . | . . Exploration | -11 -10 ------------- Run | Yrd Mat Turns Passed 1683 | 128 1555 Spaces Moved 795 | 65 730 Core 14 | 14 . Treads 461 | . 461 Legs 320 | 51 269 Wheels . | . . Hover . | . . Flight . | . . Fastest Speed 50 | 50 120 Average Speed 143 | 118 145 Slowest Speed 160 | 150 160 Overloaded Moves . | . . Propulsion Burnouts . | . . Robots Hopped . | . . Potential Cave-ins . | . . Cave-ins Triggered 1 | . 1 Exploration Rate (%) 42 | 4 81 Regions Visited 1 Branch Regions . Pre-discovered Areas . | . . Known Exits Taken . | . . Unknown Exits Taken 1 | 1 . Scrap Searched . | . . Spaces Dug 1 | . 1 Terrain Destroyed 1 | . 1 Melee 1 | . 1 Projectile . | . . AOE . | . . Terrain Rammed 1 | . 1 Walls Destroyed . | . . Machines Disabled . | . . Actions | -11 -10 --------- Run | Yrd Mat Total 1103 | 89 1014 Wait 103 | . 103 Move 794 | 64 730 Hop . | . . Pick Up 17 | 5 12 Fast Attach 11 | 7 4 Attach 2 | . 2 Detach . | . . Swap 21 | . 21 Drop 12 | . 12 Fire 139 | 13 126 Melee 3 | . 3 Ram 1 | . 1 Kick . | . . Crush . | . . Escape Stasis . | . . Rewire . | . . Trap . | . . Miscellaneous . | . . Route ------- -11/Scrapyard -10/Materials (discovered 4 exits: [*Mat x3] / [*Min]) History --------- Turn | Location | Event 13 | -11/Scrapyard | Discovered new exit (range 15) 129 | -11/Scrapyard | Entered Materials 329 | -10/Materials | Build established: Mutant 340 | -10/Materials | Discovered new exit (range 15) 643 | -10/Materials | Crushed by falling debris 643 | -10/Materials | System corruption reached 10% 674 | -10/Materials | Lost 4 parts (1p1u2w) 678 | -10/Materials | Core integrity fell below 50% 778 | -10/Materials | Discovered new exit (range 10) 897 | -10/Materials | Core integrity fell below 20% 1148 | -10/Materials | Discovered new exit (range 12) 1642 | -10/Materials | Discovered new exit (range 15) 1684 | -10/Materials | Destroyed by G-34 Mercenary with Small Laser Last Messages --------------- 01573_ K-01 Serf collects debris. 01574_ T-07 Excavator is excavating. 01577_ Rammed Door. 01577_ Destabilizing: Core damaged (-2). 01577_ Destabilizing: System corrupted (+2). 01590_ VXA#880TQRANQZYHAJEFNQE>2DD9 01628_ System corrupted: Energy discharge (-87). 01642_ EXIT=FOUND 01655_ System corrupted: Matter fused (-10). 01658_ Sml. Storage Unit destroyed. 01670_ Lgt. Treads destroyed. 01673_ 3ZV|MLQ>WGK&ZF|1OMXGEM%CU:Q1SJ3E YP# 01674_ Lgt. Treads destroyed. 01680_ Critical hit (Burn: +37). 01684_ Lgt. Assault Rifle broken. 01684_ Overheating: Short circuit. Map ----- +----------------------------------------------------+ | ???????????????? """ !/ ##### | | ????????????? """ !/ ##### | | ????????????? ##?## | | ???????????? # ? | | ?????????????########+#####T#### # ??? | | ??????????????# ######## # "" | | ??????????????# ######## # "" | | ??????????????# ######## # | | ??????????????# # # "" | | ??????????????# # + "" | | ??????????????# # # "" | | ?????????????############ ###### # | | ?????????????# ### ###### # "" | | ?????????????# """ ### # # # "" | | ????#######??# """ ### # # # "" | | ????# #??# """ ### # # # | | ????# #??# ###^^^# + ##### | | ######## ##### """ +^ ^^ # ! # # | | #! # + """ ####+####### # """ | | # + #### """ u # + + """ | | # " # #??# # T """ #### """ | | # """ #^^^#??######;### """ #### | | # """ # ####### * # """ #?## | | # """ # = # #?###### | | # "" + g ! = # #?###### | | # """ # @g !==# #??????# | | # "" ###########!!k # #??????# | | # """ #?????????## ############??????# | | # " #??????????# #?????????????????# | | # #??######### #?????????????????# | | #######?? # #?????????????????# | | ????????? # #?????????#######?# | | ????????? # #?????????# ### | | ????????? # #?????????# " | | ????????? + #?????????# "T | | ????????? #? #?????????# | | ?????????????????# #?????????# ### | | ?????????????????# #?????????## ##?? | | ?????????????????# #??????????# #??? | | ?????????????????# #??????????# #??? | | ?????????????????# #??????????# #??? | | ?????????????????# #??????????# #??? | | ?????????????????# #??????????# #??? | | ?????????????????? #??????????# #??? | | ?????????????????? ???????????# #??? | | ?????????????????? < ???????????# < #??? | | ????????????????????????????????# #??? | | ????????????????????????????????#####??? | | ???????????????????????????????????????? | | ???????????????????????????????????????? | +----------------------------------------------------+ Best States ------------- Heat Dissipation 25 Energy Generation 10 Energy Capacity 250 Matter Stores 300 Matter Capacity 300 Sight Range 16 Robot Scan Range 14 Terrain Scan Density 10 Armor Coverage 150 Propulsion Shielding 33 Evasion (%) 55 Recoil Reduction 2 Item Schematics ----------------- None Robot Schematics ------------------ None Fabricated ------------ Nothing Repaired ---------- Nothing Studied --------- None Alien Tech Used ----------------- None Achievements -------------- None Challenges ------------ None Game ------ Seed DispersionTiamatExoskeleton Manual? 0 Play Time 00:20:49 Cumulative 36.3 hours Start 2026.01.06 @ 21:59:15 End 2026.01.06 @ 22:19:47 Sessions 1 Manual Loads 0 Difficulty Rogue Special Mode None Game No. 46 Rogue 46 Adventurer 0 Explorer 0 Win Type - Total 0 Types 0/0/0/0/0/0/0/0/0/0 Lore% 32 Gallery% 34 Achievement% 24 Wizard Run 0 Options --------- Layout 0 ASCII 0 Keyboard 0 Movement Mouse Keybinds 1 Fullscreen 1 Font 18/X11 Map View 76x50 Zoom Use 0% Tactical HUD 1 Map Filters NONE Filters NONE Steam 1 RUN: 530335de-da21-4cc8-a49d-686c2ed472bd